Cogmind - Beta 17 --- EXPLORER MODE // 2026.06.29 @ 12:26:53 Player: Karp Result: Destroyed by Y-45 Defender with Heavy Assault Rifle Performance ------------- Evolutions (2) 1000 Regions Visited (3) 600 Robots Destroyed (8) 40 Value Destroyed (252) 252 Prototype IDs (0) 0 Alien Tech Used (0) 0 Bonus (470) 470 TOTAL SCORE: 2362 Bonus ------- Pacifist 470 Cogmind --------- Core Integrity 0/550 Matter 241/300 Energy 64/100 System Corruption 0% Temperature Cool (9) Movement Core (100) Ox1 Location -8/Materials Parts ------- > --- POWER (1) -------- (None) > --- PROPULSION (2) --- (None) > --- UTILITY (7) ------ (None) > --- WEAPON (2) ------- Heavy Particle Cannon > --- INVENTORY (5) ---- (None) Peak State ------------ > --- POWER ------------ (None) > --- PROPULSION ------- (None) > --- UTILITY ---------- Medium Matter Pod Medium Matter Pod > --- WEAPON ----------- Shock Rifle Heavy Particle Cannon > --- INVENTORY -------- (None) [Rating: 8] Favorites ----------- Power None Propulsion None Utility Targeting Computer Storage Medium Matter Pod Processor Targeting Computer Weapon Heavy Particle Cannon Energy Gun Shock Rifle Energy Cannon Heavy Particle Cannon Launcher Rocket Launcher Special Melee Weapon Datajack Build | -11 -10 -9 -8 ------- Run | Yrd Mat Mat Mat Slots Evolved 5 | . 1 2 2 Power . | . . . . Propulsion . | . . . . Utility 5 | . 1 2 2 Weapon . | . . . . Parts Attached 9 | 2 . 1 6 Power . | . . . . Engine . | . . . . Core . | . . . . Reactor . | . . . . Propulsion . | . . . . Treads . | . . . . Leg . | . . . . Wheel . | . . . . Hover . | . . . . Flight . | . . . . Utility 5 | 2 . 1 2 Device . | . . . . Storage 2 | . . . 2 Processor 3 | 2 . 1 . Hackware . | . . . . Protection . | . . . . Artifact . | . . . . Weapon 4 | . . . 4 Energy Gun 1 | . . . 1 Energy Cannon 1 | . . . 1 Ballistic Gun . | . . . . Ballistic Cannon . | . . . . Launcher 1 | . . . 1 Special Weapon . | . . . . Impact Weapon . | . . . . Slashing Weapon . | . . . . Piercing Weapon . | . . . . Special Melee Weapon 1 | . . . 1 Unidentified Prototypes . | . . . . Parts Lost 4 | . . . 4 Power . | . . . . Propulsion . | . . . . Utility 1 | . . . 1 Weapon 3 | . . . 3 Highest Loss Streak 2 | . . . 2 To Critical Strikes . | . . . . Average Backups . | . . . . Power . | . . . . Propulsion . | . . . . Utility . | . . . . Weapon . | . . . . Tool/Special . | . . . . Unused Backups . | . . . . Power . | . . . . Propulsion . | . . . . Utility . | . . . . Weapon . | . . . . Tool/Special . | . . . . Average Slot Usage (%) 21 | . 25 27 14 Processor 18 | . 25 27 7 Peak Build Rating 8 | 2 2 4 8 Average Rating 2 | 1 2 3 2 On Entrance 2 | . 2 2 4 Avg Prop Armor Cover (%) . | . . . . Naked Turns 61 | . . . 61 Heaviest Build 13 | . . . 13 Greatest Support 3 | 3 3 3 3 Greatest Overweight (x) 4 | . . . 4 Average Overweight (x) . | . . . . Largest Inventory Capacity 5 | 5 5 5 5 Average Capacity 5 | 5 5 5 5 Most Carried . | . . . . Average Carried . | . . . . Final Capacity 5 | 5 5 5 5 Final Carried . | . . . . Class Distribution -------------------- 100% | Hacker-Mutant Dominant Class ---------------- Hacker-Mutant | -10/Materials Hacker-Mutant | -9/Materials Hacker-Mutant | -8/Materials Resources | -11 -10 -9 -8 ----------- Run | Yrd Mat Mat Mat Matter Collected 286 | 189 . 41 56 Remotely . | . . . . Salvage Created 135 | . . . 135 Parts 12 | . . . 12 Haulers Intercepted . | . . . . Recyclers Shooed 1 | . . . 1 Parts Field Recycled . | . . . . Retrieved Matter . | . . . . Parts Self-Destructed . | . . . . Prevented . | . . . . Parts Restored . | . . . . Kills | -11 -10 -9 -8 ------- Run | Yrd Mat Mat Mat Combat Hostiles Destroyed 6 | . . . 6 Guns 1 | . . . 1 Cannons 1 | . . . 1 AOE 4 | . . . 4 Classes Destroyed 5 | . . . 5 Worker 1 | . . . 1 Watcher 1 | . . . 1 Swarmer 2 | . . . 2 Grunt 3 | . . . 3 Sentry 1 | . . . 1 Best Kill Streak 4 | . . . 4 Combat Bots Only 3 | . . . 3 Max Kills in Single Turn 2 | . . . 2 Gunslinging . | . . . . Exploded 1 | . . . 1 Melee . | . . . . Uniques/NPCs Destroyed . | . . . . Combat | -11 -10 -9 -8 -------- Run | Yrd Mat Mat Mat Hostile Shots Fired 175 | . 13 15 147 Missed 62 | . 6 9 47 Hits 113 | . 7 6 100 Projectile 113 | . 7 6 100 Critical Strikes 8 | . . 1 7 Damage Taken 900 | . 31 50 819 Core 627 | . 31 41 555 Absorbed by Shields . | . . . . Ignored by Resistances 564 | . 24 31 509 Core Remaining (%) 92 | 100 87 89 . Volleys Fired 15 | . . . 15 Largest 2 | . . . 2 Hottest 125 | . . . 125 Shots Fired 18 | . . . 18 Gun 3 | . . . 3 Cannon 6 | . . . 6 Launcher 9 | . . . 9 Special . | . . . . Kinetic . | . . . . Thermal 6 | . . . 6 Explosive 9 | . . . 9 Electromagnetic 3 | . . . 3 Robot Hit Streak 7 | . . . 7 Robot Miss Streak 1 | . . . 1 Penetration Max . | . . . . Secondary Targets . | . . . . Shots Hit Robots 20 | . . . 20 Core Hits 24 | . . . 24 Critical Kills . | . . . . Critical Parts Destroyed . | . . . . Critical Strikes . | . . . . Melee Attacks 5 | . . . 5 Impact . | . . . . Slashing . | . . . . Piercing . | . . . . Sneak Attacks 5 | . . . 5 Combat Hostiles . | . . . . Follow-up Attacks . | . . . . Damage Inflicted 1115 | . . . 1115 Guns 60 | . . . 60 Cannons 75 | . . . 75 Explosions 945 | . . . 945 Melee . | . . . . Ramming 35 | . . . 35 Kinetic . | . . . . Thermal 188 | . . . 188 Explosive 832 | . . . 832 Electromagnetic 60 | . . . 60 Impact . | . . . . Slashing . | . . . . Piercing . | . . . . Highest Corruption . | . . . . Average Corruption . | . . . . Corruption Purged . | . . . . Corruption Blocked . | . . . . Overload Shots . | . . . . Overflow Damage 7 | . . . 7 Projectiles . | . . . . Explosions 7 | . . . 7 Melee . | . . . . Knockbacks . | . . . . Impact . | . . . . Kinetic . | . . . . Secondary . | . . . . Self-Inflicted Damage 29 | . . . 29 Shots 1 | . . . 1 Rammed 9 | . . . 9 Targets Rammed 9 | . . . 9 Kicked . | . . . . Crushed . | . . . . Highest Temperature 69 | . . . 69 Average Temperature 24 | . . . 24 Received Heat Transfer 564 | . . 42 522 Siege Activations . | . . . . Martial Activations . | . . . . Shielding Activations . | . . . . Robots Disrupted . | . . . . Combat Hostiles . | . . . . Robots Corrupted . | . . . . Combat Hostiles . | . . . . Parts Fried . | . . . . Impact Corruptions . | . . . . Robots Melted . | . . . . Combat Hostiles . | . . . . Parts Melted . | . . . . Heat Transferred 161 | . . . 161 Parts Sabotaged . | . . . . Parts Stolen . | . . . . Parts Stripped . | . . . . Power Chain Reactions 1 | . . . 1 Alert | -11 -10 -9 -8 ------- Run | Yrd Mat Mat Mat Maximum Alert Level 1 | . . . 1 Low Security (%) 84 | 100 100 100 59 Level 1 15 | . . . 40 Level 2 . | . . . . Level 3 . | . . . . Level 4 . | . . . . Level 5 . | . . . . High Security . | . . . . Max Security . | . . . . Peak Influence 315 | . . 30 315 Initial 8 | . . . 8 Average 50 | . . 3 128 Influence Increases 455 | . . 45 410 Destroy 0b10 Robot/C 120 | . . . 120 Destroy 0b10 Robot/NC 10 | . . . 10 Destroy Leader 22 | . . . 22 Disable Machine 8 | . . . 8 Destroy Structure 55 | . . . 55 Partial Spotted 15 | . . . 15 Lose Combat Pursuer 225 | . . 45 180 Influence Decreases 155 | . . 15 140 Entered New Map 22 | . . . 22 Time Decay 113 | . . 15 98 Lost Part 20 | . . . 20 Squads Dispatched 4 | . . 2 2 Investigation . | . . . . Extermination . | . . . . Reinforcement 4 | . . 2 2 Assault . | . . . . Garrison . | . . . . Intercept . | . . . . Searches Triggered . | . . . . Construction Impeded . | . . . . Haulers Reinforced . | . . . . Active Scanning Responses . | . . . . Cargo Convoy Interrupts . | . . . . Stealth | -11 -10 -9 -8 --------- Run | Yrd Mat Mat Mat Distress Signals 2 | . . 1 1 Communications Jammed . | . . . . Distress Signals . | . . . . Times Spotted 38 | . 2 10 26 Peak Tracking Total 12 | . 2 9 12 Tactical Retreats 6 | . . 2 4 Traps | -11 -10 -9 -8 ------- Run | Yrd Mat Mat Mat Traps Triggered 1 | . . . 1 Indirectly . | . . . . Trap Hack Attempts . | . . . . Triggered . | . . . . Disarmed . | . . . . Reprogrammed . | . . . . Reused . | . . . . Traps Extracted . | . . . . Installed . | . . . . Triggered . | . . . . Machines | -11 -10 -9 -8 ---------- Run | Yrd Mat Mat Mat Machines Disabled 2 | . . . 2 Max in Single Turn 1 | . . . 1 Machines Repaired . | . . . . Machines Dismantled . | . . . . Machines Sabotaged . | . . . . Overloaded Fab Kills . | . . . . Hacking | -11 -10 -9 -8 --------- Run | Yrd Mat Mat Mat Machines Accessed 6 | . 1 4 1 Terminals 5 | . 1 3 1 Fabricators . | . . . . Repair Stations . | . . . . Recycling Units 1 | . . 1 . Scanalyzers . | . . . . Garrison Access . | . . . . Total Hacks 15 | . 2 10 3 Successful 11 | . 1 8 2 Failed 4 | . 1 2 1 Catastrophic . | . . . . Database Lockouts . | . . . . Manual . | . . . . Terminals 13 | . 2 8 3 Fabricators . | . . . . Repair Stations . | . . . . Recycling Units 2 | . . 2 . Scanalyzers . | . . . . Garrison Access . | . . . . Terminal Hacks 9 | . 1 6 2 Record 1 | . . 1 . Emergency Access Points 1 | . . 1 . Alert Level 2 | . . 1 1 Locate Traps 3 | . 1 1 1 Dispatch Records 1 | . . 1 . Zone Layout 1 | . . 1 . Fabricator Hacks . | . . . . Repair Station Hacks . | . . . . Recycling Unit Hacks 2 | . . 2 . Report Inventory 1 | . . 1 . Retrieve Components 1 | . . 1 . Scanalyzer . | . . . . Garrison Access Hacks . | . . . . Unauthorized Hacks . | . . . . Terminals . | . . . . Fabricators . | . . . . Repair Stations . | . . . . Recycling Units . | . . . . Scanalyzers . | . . . . Garrison Access . | . . . . Data Cores Recovered . | . . . . Used . | . . . . Hacking Detections 2 | . . 2 . Full Trace Events . | . . . . Feedback Events . | . . . . Feedback Blocked . | . . . . Robot Schematics Acquired . | . . . . Robots Built . | . . . . Authchips . | . . . . Time . | . . . . Total Robot Build Rating . | . . . . Part Schematics Acquired . | . . . . Parts Built . | . . . . Authchips . | . . . . Time . | . . . . Total Part Build Rating . | . . . . Part Studies Acquired . | . . . . Parts Repaired . | . . . . Time . | . . . . Parts Recycled . | . . . . Recycled Matter . | . . . . Retrieved Matter . | . . . . Retrieved Components 3 | . . 3 . Parts Scanalyzed . | . . . . Part Schematics Acquired . | . . . . Parts Damaged . | . . . . Bothacking | -11 -10 -9 -8 ------------ Run | Yrd Mat Mat Mat Used RIF Installer . | . . . . Robots Hacked 3 | . . . 3 Non-combat 3 | . . . 3 Combat . | . . . . Robot Hacks Applied 4 | . . . 4 parse_system 3 | . . . 3 no_distress 1 | . . . 1 Relay Couplers Released . | . . . . Fabnet Peak Effective % . | . . . . Robots Rewired . | . . . . Allies Hacked . | . . . . Hacks Repelled . | . . . . Allies | -11 -10 -9 -8 -------- Run | Yrd Mat Mat Mat Total Allies . | . . . . Largest Group . | . . . . Highest-Rated Group . | . . . . Highest-Rated Ally . | . . . . Total Orders . | . . . . Ally Attacks . | . . . . Total Damage . | . . . . Kills . | . . . . Allies Corrupted . | . . . . Allies Melted . | . . . . Intel | -11 -10 -9 -8 ------- Run | Yrd Mat Mat Mat Active Infowar (turns) . | . . . . Robot Analysis Total . | . . . . Derelict Logs Recovered . | . . . . Drone Launches . | . . . . Drone Recoveries . | . . . . Exploration | -11 -10 -9 -8 ------------- Run | Yrd Mat Mat Mat Turns Passed 491 | 26 84 193 188 Spaces Moved 810 | 47 168 383 212 Core 810 | 47 168 383 212 Treads . | . . . . Legs . | . . . . Wheels . | . . . . Hover . | . . . . Flight . | . . . . Fastest Speed 50 | 50 50 50 50 Average Speed 52 | 50 50 50 60 Slowest Speed 250 | 50 50 50 250 Overloaded Moves . | . . . . Propulsion Burnouts . | . . . . Robots Hopped . | . . . . Potential Cave-ins . | . . . . Cave-ins Triggered . | . . . . Exploration Rate (%) 22 | 3 27 32 27 Regions Visited 3 Branch Regions . Pre-discovered Areas . | . . . . Known Exits Taken 3 | 1 1 1 . Unknown Exits Taken . | . . . . Scrap Searched . | . . . . Spaces Dug . | . . . . Terrain Destroyed 61 | . . . 61 Melee . | . . . . Projectile 3 | . . . 3 AOE 58 | . . . 58 Terrain Rammed . | . . . . Walls Destroyed . | . . . . Machines Disabled . | . . . . Actions | -11 -10 -9 -8 --------- Run | Yrd Mat Mat Mat Total 847 | 48 167 383 249 Wait . | . . . . Move 807 | 46 167 382 212 Hop . | . . . . Pick Up . | . . . . Fast Attach 9 | 2 . 1 6 Attach . | . . . . Detach . | . . . . Swap . | . . . . Drop 2 | . . . 2 Fire 15 | . . . 15 Melee 5 | . . . 5 Ram 9 | . . . 9 Kick . | . . . . Crush . | . . . . Escape Stasis . | . . . . Rewire . | . . . . Trap . | . . . . Miscellaneous . | . . . . Route ------- -11/Scrapyard -10/Materials -9/Materials -8/Materials History --------- Turn | Location | Event 7 | -11/Scrapyard | Identified exit to Materials 7 | -11/Scrapyard | Discovered exit to Materials (range 16) 27 | -11/Scrapyard | Entered Materials 27 | -10/Materials | Evolved 1 slot: Utility x1 104 | -10/Materials | Identified exit to Materials 104 | -10/Materials | Discovered exit to Materials (range 16) 111 | -10/Materials | Entered another Materials area 111 | -9/Materials | Evolved 2 slots: Utility x2 280 | -9/Materials | Identified exit to Materials 280 | -9/Materials | Discovered exit to Materials (range 7) 304 | -9/Materials | Entered another Materials area 304 | -8/Materials | Evolved 2 slots: Utility x2 333 | -8/Materials | Build established: Hacker-Mutant 426 | -8/Materials | Core integrity fell below 50% 469 | -8/Materials | Core integrity fell below 20% 492 | -8/Materials | Destroyed by Y-45 Defender with Heavy Assault Rifle Last Messages --------------- Chain reaction triggered in Lgt. Deuterium Engine. W-25 Informer destroyed. S-10 Pest destroyed. Acquired Med. Matter Pod. Critical hit (Burn: +37). Shock Rifle destroyed. L-31 Rogue destroyed. Dropped Med. Matter Pod. Critical hit (Burn: +37). Dropped Med. Matter Pod. U-05 Engineer lays Concrete. Acquired 13 matter. U-05 Engineer lays Concrete. U-05 Engineer builds a Wall. U-05 Engineer lays Concrete. Acquired 17 matter. U-05 Engineer lays Concrete. Y-45 Defender destroyed. Acquired 16 matter. Critical hit (Burn: +37). Map ----- +----------------------------------------------------+ | | | | | | | | | | | | | | | | | | | | | | | | | | | | | | | | | | | | | | | ####?????????????????????????????????????????????? | | #????????????????########?????????????????????? | | #????????????????# """ /#?????????????????????? | | #????????????????# "T" #?????????????????????? | | #???????????????## #?????????????????????? | | #???????????????# ][ #?????????????????????? | | #????????????????# ][ @ ###+#?????????????????? | | ##????????????????# /# ??###????????????? | | # ######################Y### ] ?????????? | | g[ ?????????? | | ###################### ### ?????????? | | #????????????????????#=#??? ??###????????????? | | "????????????????????# #???# #?????????????????? | | """???????????????????# #??##+#####?????????????? | | """???????????????????# #??# #?????????????? | | ???????????????????# #??# ! #?????????????? | | ??????????????????# #### !#?????????????? | | ??????????????????# "=[#[ % =#?????????????? | | #+######???????????????# = = ! #?????????????? | | ###?????????????####%" #?????????????? | | / ????????????##"""#####?????????????? | | ###?????????????????#####?????????????????? | | #### #?????????????????????????????????????????? | | ?????? #?????????????????????????????????????????? | | !????????????????????????????????????????????????? | | !!#??????????????????????????????????????????????? | | #?????????????????????????????????????????????? | | ####?????????????????????????????????????????????? | | ?????????????????????????????????????????????????? | | ?????????????????????????????????????????????????? | | ?????????????????????????????????????????????????? | +----------------------------------------------------+ Best States ------------- Heat Dissipation 31 Energy Generation 5 Energy Capacity 100 Matter Stores 300 Matter Capacity 500 Sight Range 16 Terrain Scan Density 85 Resistance: KI 35 Resistance: TH 35 Resistance: EX 35 Resistance: EM 35 Resistance: I 35 Resistance: S 35 Resistance: P 35 Evasion (%) 50 Targeting Accuracy 10 Offensive Hacking 20 Item Schematics ----------------- None Robot Schematics ------------------ None Fabricated ------------ Nothing Repaired ---------- Nothing Studied --------- None Alien Tech Used ----------------- None Achievements -------------- DATA ERROR: Steam Global Achievement% For Emergencies Only Junior Dev There's More Where That Came From Challenges ------------ None Game ------ Seed InterdictionVoltaicWyrmplate Manual? 0 Play Time 00:18:50 Cumulative 10.6 hours Start 2026.06.29 @ 12:08:24 End 2026.06.29 @ 12:26:53 Sessions 1 Manual Loads 0 Difficulty Explorer Special Mode None Game No. 19 Rogue 0 Adventurer 2 Explorer 17 Win Type - Total 0 Types 0/0/0/0/0/0/0/0/0/0 Lore% 13 Gallery% 13 Achievement% 10 Wizard Run 0 Options --------- Layout 1 ASCII 0 Keyboard 0 Movement Numpad Keybinds 0 Fullscreen 1 Font 32/SmallcapsGlow Map View 77x35 Zoom Use 6% Tactical HUD 0 Map Filters NONE Filters NONE Steam 1 RUN: ca5dcea4-7fa4-4d35-89e6-7f167568a0eb